lending/lending_fUSD_20260310
["ID","MTS","AMOUNT","RATE_DAILY","PERIOD"]
[408126508,1773161333563,-500.0,0.00039726,60]
[408126509,1773161333586,-500.0,0.00039726,38]
[408126510,1773161333609,-500.0,0.00039726,30]
[408126511,1773161333633,-500.0,0.00039726,30]
[408126512,1773161333656,-500.0,0.00039726,30]
[408126513,1773161333680,-500.0,0.00039726,120]
[408126514,1773161333703,-556.39853137,0.00039747,60]
[408126515,1773161333728,-155.2537146,0.00039751,57]
[408126516,1773161333754,-313.40587637,0.000398,120]
[408126517,1773161333779,-1005.91,0.000399,120]
[408126518,1773161333803,-10841.0,0.0003999,30]
[408126519,1773161333827,-1666.6637654,0.0004,120]
[408126520,1773161333851,-2006.19,0.0004,120]
[408126521,1773161333874,-25232.0,0.0004,120]
[408126522,1773161333898,-1065.3804122,0.0004,120]
[408126523,1773161333921,-1475.35122836,0.0004,120]
[408126524,1773161333946,-2074.81975585,0.0004,120]
[408126525,1773161333971,-2485.06287128,0.0004,120]
[408126526,1773161333994,-3168.48031252,0.0004,120]
[408126527,1773161334019,-6321.8507111,0.0004,120]
[408126528,1773161334043,-3093.45854209,0.0004,120]
[408126529,1773161334067,-3215.70737047,0.0004,30]
[408126530,1773161334092,-300.0,0.0004,120]
[408126531,1773161334117,-1000.0,0.0004,120]
[408126532,1773161334144,-632.78027848,0.0004,120]
[408126533,1773161334168,-470.71471762,0.0004,120]
[408126534,1773161334193,-3000.0,0.0004,30]
[408126535,1773161334487,-3000.0,0.0004,30]
[408126536,1773161334513,-3000.0,0.0004,30]
[408126537,1773161334538,-250.0,0.0004,120]
[408126538,1773161334563,-789.0,0.0004,63]
[408126539,1773161334588,-1000.0,0.0004,30]
[408126540,1773161334611,-165.64884256,0.0004,120]
[408126541,1773161334636,-1000.0,0.0004,30]
[408126542,1773161334660,-150.95965794,0.0004,60]
[408126543,1773161334684,-175.0144624,0.0004,30]
[408126544,1773161334708,-158.38778314,0.0004,120]
[408126545,1773161334732,-150.0,0.0004,120]
[408126546,1773161334756,-332.21886811,0.0004,120]
[408126547,1773161334780,-5234.11251483,0.0004,30]
[408126548,1773161334804,-200.0,0.0004,120]
[408126549,1773161334828,-599.999996,0.0004,120]
[408126550,1773161334853,-20721.81936881,0.0004,120]
[408126551,1773161334876,-32863.34085276,0.0004,120]
[408126552,1773161334900,-22826.32,0.0004,30]
[408126553,1773161334924,-4800.0,0.0004,120]
[408126554,1773161334947,-18647.657839,0.0004,120]
[408126555,1773161334972,-154.0,0.0004,120]
[408126556,1773161334995,-4584.60718772,0.0004,120]
[408126557,1773161335019,-152.0,0.0004,120]
[408126558,1773161335043,-3000.0,0.0004,120]
[408126559,1773161335067,-917.97005082,0.0004,120]
[408126560,1773161335091,-2352.66405319,0.0004,120]
[408126561,1773161335118,-19415.37406226,0.0004,120]
[408126562,1773161335142,-160.0,0.0004,120]
[408126563,1773161335166,-5309.41656588,0.0004,30]
[408126564,1773161335191,-2670.9578154,0.0004,120]
[408126565,1773161335215,-6000.0,0.0004,120]
[408126566,1773161335238,-195.26,0.0004,120]
[408126567,1773161335263,-219.68,0.0004,120]
[408126568,1773161335286,-287.66,0.0004,120]
[408126569,1773161335310,-2500.0,0.0004,120]
[408126570,1773161335333,-1400.41,0.0004,120]
[408126571,1773161335357,-288.34,0.0004,120]
[408126572,1773161335385,-202.15363139,0.0004,30]
[408126573,1773161335409,-2500.0,0.0004,120]
[408126574,1773161335434,-2996.37,0.0004,120]
[408126575,1773161335459,-213.17,0.0004,120]
[408126576,1773161335483,-207.4,0.0004,120]
[408126577,1773161335506,-160.0,0.0004,30]
[408126578,1773161335531,-5542.52057426,0.0004019,90]
[408126579,1773161335556,-3686.99,0.0004028,90]
[408126580,1773161335581,-3000.0,0.000405,30]
[408126581,1773161335605,-3000.0,0.000405,30]
[408126582,1773161335629,-3266.43155776,0.000405,120]
[408126583,1773161335658,-1501.25,0.000405,120]
[408126584,1773161335685,-2500.0,0.000405,120]
[408126585,1773161335710,-2500.0,0.000405,120]
[408126586,1773161335735,-1249.0,0.00040605,120]
[408126587,1773161335762,-2923.0,0.00040789,40]
[408126588,1773161335787,-152.0,0.000409,120]
[408126589,1773161335811,-214.0,0.0004093,30]
[408126590,1773161335836,-311873.0,0.0004095,60]
[408126591,1773161335861,-380.3,0.00040952,30]
[408126592,1773161335884,-2662.0,0.00041,120]
[408126593,1773161335909,-761.57778683,0.00041,120]
[408126594,1773161335935,-3223.11381649,0.00041,30]
[408126595,1773161335959,-3174.92828592,0.00041,30]
[408126596,1773161335983,-2318.152568,0.00041,120]
[408126597,1773161336008,-1000.0,0.00041,120]
[408126598,1773161336031,-3200.0,0.00041,30]
[408126599,1773161336056,-3000.0,0.00041,30]
[408126600,1773161336085,-250.0,0.00041,120]
[408126601,1773161336111,-1000.0,0.00041,30]
[408126602,1773161336138,-724.59028117,0.00041,30]
[408126603,1773161336167,-652.60387444,0.00041,30]
[408126604,1773161336191,-1760.24,0.00041,120]
[408126605,1773161336219,-646.33823849,0.00041,30]
[408126606,1773161336243,-980.9037318,0.00041,120]
[408126607,1773161336268,-1500.0,0.00041,120]
[408126608,1773161336292,-8000.0,0.00041,30]
[408126609,1773161336317,-5018.69123519,0.00041,120]
[408126610,1773161336342,-2500.0,0.00041,120]
[408126611,1773161336367,-2499.99,0.00041,120]
[408126612,1773161336393,-1000.0,0.00041095,120]
[408126613,1773161336419,-1000.0,0.00041095,120]
[408126614,1773161336445,-1000.0,0.00041095,120]
[408126615,1773161336472,-1000.0,0.00041095,120]
[408126616,1773161336498,-1000.0,0.00041095,120]
[408126617,1773161336528,-1000.0,0.00041095,120]
[408126618,1773161336555,-1000.0,0.00041095,120]
[408126619,1773161336581,-1000.0,0.00041095,120]
[408126620,1773161336608,-1000.0,0.00041095,120]
[408126621,1773161336633,-1000.0,0.00041095,120]
[408126622,1773161336659,-1000.0,0.00041095,120]
[408126623,1773161336685,-1000.0,0.00041095,120]
[408126624,1773161336711,-1000.0,0.00041095,120]
[408126625,1773161336738,-1000.0,0.00041095,120]
[408126626,1773161336768,-1000.0,0.00041095,120]
[408126627,1773161336794,-963.44670518,0.00041095,120]
[408126628,1773161336820,-2098.99595756,0.00041095,120]
[408126629,1773161336845,-8950.0,0.00041096,120]
[408126630,1773161336871,-50000.0,0.00041096,60]
[408126631,1773161336896,-31185.89,0.00041096,60]
[408126632,1773161336920,-50000.0,0.00041096,60]
[408126633,1773161336947,-36134.32,0.00041096,60]
[408126634,1773161336975,-176.0,0.00041096,120]
[408126635,1773161337000,-17084.12482044,0.00041096,30]
[408126636,1773161337024,-1402.157834,0.00041096,120]
[408126637,1773161337050,-1402.157834,0.00041096,120]
[408126638,1773161337076,-1402.157834,0.00041096,120]
[408126639,1773161337383,-1402.157834,0.00041096,120]
[408126640,1773161337410,-1402.157834,0.00041096,120]
[408126641,1773161337436,-1402.157834,0.00041096,120]
[408126642,1773161337460,-1402.157834,0.00041096,120]
[408126643,1773161337484,-1402.157834,0.00041096,120]
[408126644,1773161337508,-1402.157834,0.00041096,120]
[408126645,1773161337531,-1402.157834,0.00041096,120]
[408126646,1773161337554,-1402.157834,0.00041096,120]
[408126647,1773161337578,-1402.157834,0.00041096,120]
[408126648,1773161337603,-1402.157834,0.00041096,120]
[408126649,1773161337630,-1402.157834,0.00041096,120]
[408126650,1773161337654,-1402.157834,0.00041096,120]
[408126651,1773161337678,-1402.157834,0.00041096,120]
[408126652,1773161337701,-1402.157834,0.00041096,120]
[408126653,1773161337726,-1402.157834,0.00041096,120]
[408126654,1773161337750,-1402.157834,0.00041096,120]
[408126655,1773161337775,-1402.157826,0.00041096,120]
[408126656,1773161337801,-155.0,0.00041096,60]
[408126657,1773161337826,-3000.0,0.00041096,120]
[408126658,1773161337849,-500.0,0.00041096,120]
[408126659,1773161337873,-500.0,0.00041096,120]
[408126660,1773161337896,-500.0,0.00041096,120]
[408126661,1773161337921,-285.01050938,0.00041096,120]
[408126662,1773161337945,-150.0,0.00041096,60]
[408126663,1773161337969,-2610.28406912,0.000411,120]
[408126664,1773161337994,-154.0,0.000411,120]
[408126665,1773161338017,-1500.0,0.000411,120]
[408126666,1773161338041,-150.0,0.00041151,60]
[408126667,1773161338064,-153.7895367,0.000412,30]
[408126668,1773161338088,-150.0,0.000412,120]
[408126669,1773161338112,-160.0,0.000412,120]
[408126670,1773161338142,-160.0,0.000412,30]
[408126671,1773161338169,-298.25796733,0.00041206,60]
[408126672,1773161338194,-3619.55309685,0.0004128,90]
[408126673,1773161338223,-150.0,0.00041452,120]
[408126674,1773161338247,-4378.63,0.00041452,120]
[408126675,1773161338270,-150.0,0.00041452,120]
[408126676,1773161338297,-3000.0,0.000415,30]
[408126677,1773161338320,-3000.0,0.000415,30]
[408126678,1773161338344,-4185.0,0.000415,120]
[408126679,1773161338368,-3210.62379088,0.000415,120]
[408126680,1773161338392,-2590.37,0.000415,60]
[408126681,1773161338417,-2500.0,0.000415,120]
[408126682,1773161338442,-166.45357173,0.00041645,51]
[408126683,1773161338468,-254.15632428,0.00041705,105]
[408126684,1773161338492,-186.146944,0.00041781,120]
[408126685,1773161338516,-186.146944,0.00041781,120]
[408126686,1773161338539,-186.146944,0.00041781,120]
[408126687,1773161338564,-186.146944,0.00041781,120]
[408126688,1773161338588,-186.146944,0.00041781,120]
[408126689,1773161338612,-186.146944,0.00041781,120]
[408126690,1773161338636,-186.146944,0.00041781,120]
[408126691,1773161338660,-186.146944,0.00041781,120]
[408126692,1773161338683,-186.146944,0.00041781,120]
[408126693,1773161338708,-186.146944,0.00041781,120]
[408126694,1773161338732,-186.146944,0.00041781,120]
[408126695,1773161338755,-186.146944,0.00041781,120]
[408126696,1773161338780,-186.146944,0.00041781,120]
[408126697,1773161338804,-186.146944,0.00041781,120]
[408126698,1773161338830,-186.146944,0.00041781,120]
[408126699,1773161338854,-186.146944,0.00041781,120]
[408126700,1773161338879,-186.146944,0.00041781,120]
[408126701,1773161338903,-186.146944,0.00041781,120]
[408126702,1773161338927,-186.146944,0.00041781,120]
[408126703,1773161338951,-5400.0,0.00041781,120]
[408126704,1773161338977,-5400.0,0.00041781,120]
[408126705,1773161339002,-5400.0,0.00041781,120]
[408126706,1773161339026,-5400.0,0.00041781,120]
[408126707,1773161339050,-5400.0,0.00041781,120]
[408126708,1773161339077,-5400.0,0.00041781,120]
[408126709,1773161339103,-5400.0,0.00041781,120]
[408126710,1773161339131,-5400.0,0.00041781,120]
[408126711,1773161339161,-5400.0,0.00041781,120]
[408126712,1773161339188,-5400.0,0.00041781,120]
[408126713,1773161339215,-5400.0,0.00041781,120]
[408126714,1773161339240,-5400.0,0.00041781,120]
[408126715,1773161339264,-5400.0,0.00041781,120]
[408126716,1773161339289,-5400.0,0.00041781,120]
[408126717,1773161339313,-5400.0,0.00041781,120]
[408126718,1773161339338,-5400.0,0.00041781,120]
[408126719,1773161339363,-5400.0,0.00041781,120]
[408126720,1773161339389,-5400.0,0.00041781,120]
[408126721,1773161339415,-5400.0,0.00041781,120]
[408126722,1773161339441,-5400.0,0.00041781,120]
[408126723,1773161339467,-3266.43155776,0.000418,120]
[408126724,1773161339494,-1492.227,0.000418,60]
[408126725,1773161339518,-1492.22,0.000418,120]
[408126726,1773161339542,-1369.1963,0.000418,120]
[408126727,1773161339566,-1602.572,0.000418,60]
[408126728,1773161339591,-1602.57,0.000418,30]
[408126729,1773161339614,-3236.056,0.000418,60]
[408126730,1773161339638,-3236.056,0.000418,120]
[408126731,1773161339662,-3236.05,0.000418,60]
[408126732,1773161339686,-2265.539,0.000418,120]
[408126733,1773161339710,-2317.1444,0.000418,60]
[408126734,1773161339733,-749.0573,0.000418,60]
[408126735,1773161339757,-169.27638424,0.000418,60]
[408126736,1773161339781,-175.16572244,0.00041828,106]
[408126737,1773161339804,-217.54204116,0.00041834,120]
[408126738,1773161339828,-218.07705611,0.00041834,120]
[408126739,1773161339850,-217.80954864,0.00041834,120]
[408126740,1773161339875,-2195.68,0.00041884,62]
[408126741,1773161339899,-519.28169776,0.000419,120]
[408126742,1773161340147,-152.0,0.000419,120]
[408126743,1773161340174,-9626.77087291,0.000419,120]
[408126744,1773161340200,-6224.46865526,0.000419,120]
[408126745,1773161340225,-207.75,0.000419,60]
[408126746,1773161340248,-260.06,0.000419,60]
[408126747,1773161340273,-200.0,0.00041934,120]
[408126748,1773161340306,-503.0,0.00042,120]
[408126749,1773161340334,-310.0,0.00042,120]
[408126750,1773161340361,-310.0,0.00042,120]
[408126751,1773161340388,-310.0,0.00042,120]
[408126752,1773161340414,-310.0,0.00042,120]
[408126753,1773161340443,-310.0,0.00042,120]
[408126754,1773161340470,-310.0,0.00042,120]
[408126755,1773161340497,-310.0,0.00042,120]
[408126756,1773161340524,-310.0,0.00042,120]
[408126757,1773161340549,-310.0,0.00042,120]
[408126758,1773161340575,-310.0,0.00042,120]
[408126759,1773161340600,-310.0,0.00042,120]
[408126760,1773161340624,-310.0,0.00042,120]
[408126761,1773161340648,-310.0,0.00042,120]
[408126762,1773161340677,-310.0,0.00042,120]
[408126763,1773161340703,-613.72136894,0.00042,120]
[408126764,1773161340732,-2682.73295551,0.00042,120]
[408126765,1773161340758,-4849.44167274,0.00042,120]
[408126766,1773161340784,-1000.0,0.00042,120]
[408126767,1773161340813,-1000.0,0.00042,120]
[408126768,1773161340839,-500.0,0.00042,120]
[408126769,1773161340866,-3000.0,0.00042,30]
[408126770,1773161340891,-3000.0,0.00042,30]
[408126771,1773161340919,-1000.0,0.00042,30]
[408126772,1773161340946,-250.0,0.00042,120]
[408126773,1773161340974,-1000.0,0.00042,30]
[408126774,1773161341001,-178.63001544,0.00042,120]
[408126775,1773161341027,-2092.00472621,0.00042,120]
[408126776,1773161341052,-8046.0,0.00042,120]
[408126777,1773161341077,-3025.97154628,0.00042,120]
[408126778,1773161341102,-157.51627206,0.00042,120]
[408126779,1773161341131,-32071.74467449,0.00042,120]
[408126780,1773161341165,-2500.0,0.00042,120]
[408126781,1773161341191,-500.0,0.00042,120]
[408126782,1773161341221,-882.0,0.00042016,30]
[408126783,1773161341249,-150.0,0.00042173,120]
[408126784,1773161341278,-158.55869778,0.00042179,73]
[408126785,1773161341307,-154.0,0.000422,120]
[408126786,1773161341333,-2183.44,0.000423,60]
[408126787,1773161341360,-311873.0,0.000423,60]
[408126788,1773161341393,-380.3,0.00042394,30]
[408126789,1773161341420,-691.8649,0.000424,120]
[408126790,1773161341446,-1626.526,0.000424,120]
[408126791,1773161341473,-1626.526,0.000424,90]
[408126792,1773161341500,-1626.52,0.000424,120]
[408126793,1773161341525,-1575.815,0.000424,90]
[408126794,1773161341550,-1575.81,0.000424,90]
[408126795,1773161341575,-1571.525,0.000424,90]
[408126796,1773161341607,-1571.52,0.000424,90]
[408126797,1773161341633,-500.0,0.00042438,120]
[408126798,1773161341659,-50000.0,0.00042466,65]
[408126799,1773161341687,-50000.0,0.00042466,65]
[408126800,1773161341713,-700.0,0.00042466,120]
[408126801,1773161341745,-700.0,0.00042466,120]
[408126802,1773161341772,-700.0,0.00042466,120]
[408126803,1773161341798,-700.0,0.00042466,120]
[408126804,1773161341828,-700.0,0.00042466,120]
[408126805,1773161341854,-700.0,0.00042466,120]
[408126806,1773161341880,-700.0,0.00042466,120]
[408126807,1773161341909,-700.0,0.00042466,120]
[408126808,1773161341937,-700.0,0.00042466,120]
[408126809,1773161341962,-700.0,0.00042466,120]
[408126810,1773161341989,-700.0,0.00042466,120]
[408126811,1773161342020,-700.0,0.00042466,120]
[408126812,1773161342047,-700.0,0.00042466,120]
[408126813,1773161342078,-700.0,0.00042466,120]
[408126814,1773161342108,-700.0,0.00042466,120]
[408126815,1773161342139,-700.0,0.00042466,120]
[408126816,1773161342166,-700.0,0.00042466,120]
[408126817,1773161342192,-700.0,0.00042466,120]
[408126818,1773161342218,-700.0,0.00042466,120]
[408126819,1773161342243,-700.0,0.00042466,120]
[408126820,1773161342271,-292.610326,0.00042466,120]
[408126821,1773161342296,-500.0,0.00042466,60]
[408126822,1773161342320,-500.0,0.00042466,60]
[408126823,1773161342346,-500.0,0.00042466,60]
[408126824,1773161342371,-500.0,0.00042466,60]
[408126825,1773161342397,-500.0,0.00042466,60]
[408126826,1773161342424,-500.0,0.00042466,60]
[408126827,1773161342451,-500.0,0.00042466,60]
[408126828,1773161342477,-500.0,0.00042466,60]
[408126829,1773161342503,-500.0,0.00042466,60]
[408126830,1773161342528,-500.0,0.00042466,60]
[408126831,1773161342553,-500.0,0.00042466,60]
[408126832,1773161342578,-500.0,0.00042466,60]
[408126833,1773161342603,-500.0,0.00042466,60]
[408126834,1773161342629,-500.0,0.00042466,60]
[408126835,1773161342662,-500.0,0.00042466,60]
[408126836,1773161342710,-500.0,0.00042466,60]
[408126837,1773161342759,-500.0,0.00042466,60]
[408126838,1773161342788,-500.0,0.00042466,60]
[408126839,1773161342816,-500.0,0.00042466,60]
[408126840,1773161342841,-500.0,0.00042466,60]
[408126841,1773161342867,-500.0,0.00042466,60]
[408126842,1773161342893,-500.0,0.00042466,60]
[408126843,1773161342919,-500.0,0.00042466,60]
[408126844,1773161342944,-500.0,0.00042466,60]
[408126845,1773161342977,-500.0,0.00042466,60]
[408126846,1773161343396,-500.0,0.00042466,60]
[408126847,1773161343427,-500.0,0.00042466,60]
[408126848,1773161343453,-500.0,0.00042466,60]
[408126849,1773161343479,-500.0,0.00042466,60]
[408126850,1773161343505,-500.0,0.00042466,60]
[408126851,1773161343530,-500.0,0.00042466,60]
[408126852,1773161343555,-500.0,0.00042466,60]
[408126853,1773161343581,-500.0,0.00042466,60]
[408126854,1773161343606,-500.0,0.00042466,60]
[408126855,1773161343630,-500.0,0.00042466,60]
[408126856,1773161343659,-500.0,0.00042466,60]
[408126857,1773161343684,-500.0,0.00042466,60]
[408126858,1773161343708,-500.0,0.00042466,60]
[408126859,1773161343732,-500.0,0.00042466,60]
[408126860,1773161343756,-500.0,0.00042466,60]
[408126861,1773161343781,-500.0,0.00042466,60]
[408126862,1773161343804,-500.0,0.00042466,60]
[408126863,1773161343831,-500.0,0.00042466,60]
[408126864,1773161343856,-500.0,0.00042466,60]
[408126865,1773161343884,-500.0,0.00042466,60]
[408126866,1773161343908,-500.0,0.00042466,60]
[408126867,1773161343932,-500.0,0.00042466,60]
[408126868,1773161343957,-500.0,0.00042466,60]
[408126869,1773161343980,-500.0,0.00042466,60]
[408126870,1773161344004,-500.0,0.00042466,60]
[408126871,1773161344028,-500.0,0.00042466,60]
[408126872,1773161344052,-500.0,0.00042466,60]
[408126873,1773161344077,-500.0,0.00042466,60]
[408126874,1773161344101,-500.0,0.00042466,60]
[408126875,1773161344132,-500.0,0.00042466,60]
[408126876,1773161344159,-500.0,0.00042466,60]
[408126877,1773161344185,-913.0,0.00042466,60]
[408126878,1773161344210,-500.0,0.00042466,120]
[408126879,1773161344236,-318.8726668,0.00042486,75]
[408126880,1773161344261,-1748.82050582,0.000425,60]
[408126881,1773161344286,-6760.44533603,0.000425,120]
[408126882,1773161344311,-3000.0,0.000425,30]
[408126883,1773161344336,-500.0,0.000425,120]
[408126884,1773161344361,-2500.0,0.000425,120]
[408126885,1773161344387,-500.0,0.00042521,120]
[408126886,1773161344413,-382.0,0.0004257,120]
[408126887,1773161344449,-382.0,0.0004257,120]
[408126888,1773161344493,-500.0,0.00042575,120]
[408126889,1773161344520,-500.0,0.00042576,120]
[408126890,1773161344547,-416.3,0.000426,120]
[408126891,1773161344573,-545.85,0.000426,90]
[408126892,1773161344611,-647.58,0.000426,90]
[408126893,1773161344641,-567.57,0.00042605,120]
[408126894,1773161344670,-500.0,0.0004263,120]
[408126895,1773161344698,-500.0,0.00042685,120]
[408126896,1773161344725,-500.0,0.00042712,120]
[408126897,1773161344753,-1044.1,0.00042723,30]
[408126898,1773161344780,-4130.37303523,0.00042739,30]
[408126899,1773161344808,-178.32869754,0.0004274,120]
[408126900,1773161344834,-500.0,0.0004274,120]
[408126901,1773161344860,-150.0,0.00042748,30]
[408126902,1773161344887,-150.0,0.00042748,30]
[408126903,1773161344913,-500.0,0.00042795,120]
[408126904,1773161344940,-2618.60936239,0.000428,90]
[408126905,1773161344967,-152.0,0.000428,120]
[408126906,1773161344996,-500.0,0.00042849,120]
[408126907,1773161345038,-500.0,0.0004285,120]
[408126908,1773161345145,-6770.10001407,0.0004288,60]
[408126909,1773161345175,-1923.61064718,0.000429,30]
[408126910,1773161345208,-5000.0,0.000429,120]
[408126911,1773161345236,-500.0,0.00042904,120]
[408126912,1773161345265,-214.0,0.0004295,30]
[408126913,1773161345292,-500.0,0.00042959,120]
[408126914,1773161345319,-8051.49,0.0004298,60]
[408126915,1773161345347,-307.21868872,0.00042986,120]
[408126916,1773161345374,-152.07532343,0.0004299,60]
[408126917,1773161345406,-761.31019788,0.00043,120]
[408126918,1773161345436,-261.57546062,0.00043,120]
[408126919,1773161345463,-165.11543899,0.00043,120]
[408126920,1773161345491,-3100.0,0.00043,85]
[408126921,1773161345519,-3000.0,0.00043,30]
[408126922,1773161345547,-3000.0,0.00043,30]
[408126923,1773161345576,-1000.0,0.00043,30]
[408126924,1773161345604,-17267.56164822,0.00043,120]
[408126925,1773161345632,-237.40776264,0.00043,120]
[408126926,1773161345662,-236.75553718,0.00043,30]
[408126927,1773161345695,-940.36030961,0.00043,120]
[408126928,1773161345723,-260.0,0.00043,120]
[408126929,1773161345752,-162.0482,0.00043,120]
[408126930,1773161345780,-600.0,0.00043,120]
[408126931,1773161345807,-600.0,0.00043,120]
[408126932,1773161345836,-600.0,0.00043,120]
[408126933,1773161345864,-600.0,0.00043,120]
[408126934,1773161345891,-600.0,0.00043,120]
[408126935,1773161345919,-366.069,0.00043,120]
[408126936,1773161345947,-497.0631371,0.00043,120]
[408126937,1773161345977,-23955.0,0.00043,120]
[408126938,1773161346005,-382.0,0.00043,120]
[408126939,1773161346032,-500.0,0.00043,120]
[408126940,1773161346058,-500.0,0.00043014,120]
[408126941,1773161346084,-250.0,0.00043068,120]
[408126942,1773161346112,-250.0,0.00043068,120]
[408126943,1773161346147,-250.0,0.00043068,120]
[408126944,1773161346176,-250.0,0.00043068,120]
[408126945,1773161346203,-250.0,0.00043068,120]
[408126946,1773161346230,-250.0,0.00043068,120]
[408126947,1773161346258,-340.37,0.00043068,120]
[408126948,1773161346679,-200.0,0.00043068,120]
[408126949,1773161346707,-500.0,0.00043069,120]
[408126950,1773161346733,-734.28163671,0.000431,120]
[408126951,1773161346758,-500.0,0.00043124,120]
[408126952,1773161346784,-1000.0,0.00043158,120]
[408126953,1773161346809,-500.0,0.00043178,120]
[408126954,1773161346834,-163.44509126,0.00043188,30]
[408126955,1773161346861,-1000.0,0.000432,120]
[408126956,1773161346890,-1000.0,0.000432,120]
[408126957,1773161346915,-1000.0,0.000432,120]
[408126958,1773161346949,-1000.0,0.000432,120]
[408126959,1773161346975,-1000.0,0.000432,120]
[408126960,1773161347002,-3170.39,0.000432,120]
[408126961,1773161347028,-1552.257,0.000432,90]
[408126962,1773161347055,-1552.257,0.000432,90]
[408126963,1773161347081,-1552.25,0.000432,120]
[408126964,1773161347108,-1216.468,0.000432,90]
[408126965,1773161347140,-1216.468,0.000432,90]
[408126966,1773161347166,-1216.47,0.000432,90]
[408126967,1773161347192,-1414.891,0.000432,90]
[408126968,1773161347217,-1414.89,0.000432,120]
[408126969,1773161347243,-13760.9548,0.000432,90]
[408126970,1773161347268,-3580.623,0.000432,120]
[408126971,1773161347293,-3580.623,0.000432,120]
[408126972,1773161347318,-3580.62,0.000432,90]
[408126973,1773161347343,-2380.25,0.000432,120]
[408126974,1773161347369,-2380.25,0.000432,90]
[408126975,1773161347396,-2380.25,0.000432,120]
[408126976,1773161347423,-543.30507786,0.00043233,120]
[408126977,1773161347449,-195.63875223,0.00043287,120]
[408126978,1773161347476,-366.21392826,0.000433,120]
[408126979,1773161347502,-1000.0,0.00043335,120]
[408126980,1773161347528,-964.3369732,0.00043335,120]
[408126981,1773161347555,-198.87,0.00043335,90]
[408126982,1773161347581,-800.15215592,0.0004337,30]
[408126983,1773161347610,-154.0,0.000434,120]
[408126984,1773161347638,-1044.1,0.0004343,30]
[408126985,1773161347665,-200.0,0.00043434,120]
[408126986,1773161347691,-2152.88507848,0.000435,30]
[408126987,1773161347717,-382.0,0.000435,120]
[408126988,1773161347743,-18970.54592542,0.000435,30]
[408126989,1773161347770,-500.0,0.000435,120]
[408126990,1773161347797,-937.19,0.00043605,120]
[408126991,1773161347825,-1075.46,0.00043605,120]
[408126992,1773161347852,-311873.0,0.0004365,60]
[408126993,1773161347882,-1172.39659532,0.000437,120]
[408126994,1773161347908,-1000.0,0.000438,30]
[408126995,1773161347935,-1000.0,0.000438,30]
[408126996,1773161347962,-2729.3016079,0.000438,120]
[408126997,1773161347989,-152.0,0.000438,120]
[408126998,1773161348019,-637.95,0.000438,120]
[408126999,1773161348046,-500.0,0.00043835,120]
[408127000,1773161348072,-50000.0,0.00043836,70]
[408127001,1773161348097,-50000.0,0.00043836,70]
[408127002,1773161348129,-3000.0,0.00043836,120]
[408127003,1773161348176,-800.0,0.00043836,30]
[408127004,1773161348208,-800.0,0.00043836,30]
[408127005,1773161348236,-380.3,0.00043836,30]
[408127006,1773161348262,-197.92078949,0.000439,120]
[408127007,1773161348290,-234.96086284,0.000439,120]